fUSD/lending_fUSD_20250611
["ID","MTS","AMOUNT","RATE_DAILY","PERIOD"]
[365429186,1749666448751,-603.74672402,0.0001798,2]
[365429187,1749666448773,-156.41,0.00018,2]
[365429188,1749666448794,-500.0,0.00018019,2]
[365429189,1749666448816,-232.11196843,0.00018019,2]
[365429190,1749666448838,-38.48742382,0.00018019,2]
[365429191,1749666492548,299.65871206,0.0001439,2]
[365429192,1749666505578,174.87941646,7.888e-05,2]
[365429195,1749666522079,1370.31462887,0.00010136,2]
[365429196,1749666522542,1237.74270302,0.00013368,2]
[365429210,1749666592664,5711.88104792,0.00017,2]
[365429223,1749666631986,-521.45083662,0.0001722,2]
[365429225,1749666631996,-234.06435585,0.000179,2]
[365429226,1749666632006,-305.38,0.00017913,2]
[365429227,1749666632016,-303.56,0.00017913,2]
[365429228,1749666632025,-305.27,0.0001797,2]
[365429229,1749666632035,-304.78,0.0001797,2]
[365429230,1749666632044,-666.0,0.0001797,2]
[365429231,1749666632054,-300.0,0.00017998,2]
[365429232,1749666632063,-1200.0,0.00017998,2]
[365429233,1749666632073,-543.26840294,0.00017999,2]
[365429234,1749666632082,-500.0,0.00017999,2]
[365429235,1749666632092,-500.0,0.00017999,2]
[365429236,1749666632102,-500.0,0.00017999,2]
[365429237,1749666632113,-500.0,0.00017999,2]
[365429238,1749666632122,-374.960201,0.00017999,2]
[365429239,1749666632132,-500.0,0.00017999,2]
[365429240,1749666632141,-628.08639931,0.00017999,2]
[365429241,1749666632151,-500.0,0.00017999,2]
[365429242,1749666632161,-500.0,0.00017999,2]
[365429243,1749666632170,-500.0,0.00017999,2]
[365429244,1749666632180,-500.0,0.00017999,2]
[365429245,1749666632190,-499.35510787,0.00017999,2]
[365429246,1749666632200,-500.0,0.00017999,2]
[365429247,1749666632209,-2772.92605941,0.00018,2]
[365429248,1749666632221,-10864.51479999,0.00018,2]
[365429249,1749666632360,-10841.24838477,0.00018,2]
[365429250,1749666632371,-304.29,0.00018,2]
[365429251,1749666632381,-752.76,0.00018009,2]
[365429252,1749666632391,-299.38111611,0.00018019,2]
[365429253,1749666632403,-5.52888389,0.00018019,2]
[365429254,1749666632413,-300.0,0.0001802,2]
[365429255,1749666632422,-10561.98771611,0.0001802,2]
[365429742,1749666638012,-2485.68083979,0.0001802,2]
[365429745,1749666638024,-488.66430191,0.0001802,2]
[365429762,1749666638175,-2460.97714219,0.0001802,2]
[365429764,1749666638184,-7774.27022273,0.000181,2]
[365429766,1749666638197,-813.0518736,0.000181,2]
[365429768,1749666638208,-301.23766194,0.000181,2]
[365429770,1749666638219,-403.85924332,0.000181,2]
[365429773,1749666638231,-585.10106801,0.000181,2]
[365429775,1749666638243,-1964.5449648,0.000181,2]
[365429782,1749666638301,-376.65079791,0.000181,2]
[365429784,1749666638310,-165.91,0.00018153,2]
[365429786,1749666638320,-908.82,0.00018189,2]
[365429788,1749666638330,-267.17,0.00018238,2]
[365429790,1749666638342,-250.0,0.00018249,2]
[365429792,1749666638351,-500.0,0.00018251,2]
[365429794,1749666638361,-220.6171375,0.00018251,2]
[365429796,1749666638370,-239.92947547,0.00018251,2]
[365429798,1749666638380,-500.0,0.00018251,2]
[365429800,1749666638390,-500.0,0.00018251,2]
[365429802,1749666638399,-420.29379816,0.00018251,2]
[365429804,1749666638408,-23900.0,0.00018252,2]
[365429806,1749666638417,-1345.77,0.00018472,2]
[365429808,1749666638427,-205.0,0.00018609,3]
[365429810,1749666638436,-151.0,0.00018751,2]
[365429812,1749666638448,-1957.856,0.00018751,2]
[365429814,1749666638457,-816.38860939,0.00018751,2]
[365429816,1749666638466,-207.4,0.00018751,2]
[365429818,1749666638475,-2030.296672,0.00018806,2]
[365429820,1749666638484,-2105.41764886,0.00018861,2]
[365429822,1749666638493,-2183.31810187,0.00018916,2]
[365429823,1749666638503,-2264.10087164,0.00018971,2]
[365429825,1749666638512,-250.0,0.00019,2]
[365429827,1749666638522,-2347.87260389,0.00019026,2]
[365429828,1749666638531,-921.96,0.00019041,2]
[365429830,1749666638540,-854.19848809,0.00019078,2]
[365429832,1749666638549,-185.80941388,0.00019078,2]
[365429834,1749666638559,-1081.48276693,0.00019078,2]
[365429836,1749666638568,-1632.55586777,0.00019078,2]
[365429837,1749666638577,-183.21481544,0.00019078,2]
[365429839,1749666638586,-2710.4693,0.00019078,2]
[365429841,1749666638596,-1000.0,0.00019078,2]
[365429843,1749666638605,-415.1184,0.00019078,2]
[365429844,1749666638614,-1237.5036,0.00019078,2]
[365429846,1749666638624,-195.5976,0.00019078,2]
[365429848,1749666638634,-2434.74389024,0.00019081,2]
[365429850,1749666638643,-2524.82941417,0.00019136,2]
[365429851,1749666638652,-1000.85759959,0.00019166,7]
[365429853,1749666638661,-1081.48276686,0.00019169,2]
[365429855,1749666638670,-1632.55586771,0.00019169,2]
[365429856,1749666638679,-3953.54571262,0.0001917,2]
[365429859,1749666638696,-357.606,0.0001917,2]
[365429980,1749666640132,-150.0,0.0001791,7]
[365429981,1749666640141,-595.14415438,0.0001917,2]
[365429987,1749666640189,-607.46602351,0.0001917,2]
[365429989,1749666640202,-27.17776712,0.0001917,2]
[365429991,1749666640212,-155.0,0.00019177,2]
[365429993,1749666640221,-192.43238799,0.00019178,2]
[365429995,1749666640231,-74.68523772,0.00019178,2]
[365429998,1749666640246,-405.31476228,0.00019178,2]
[365430000,1749666640255,-480.0,0.00019178,2]
[365430002,1749666640264,-490.0,0.00019178,2]
[365430004,1749666640274,-490.0,0.00019178,2]
[365430006,1749666640283,-490.0,0.00019178,2]
[365430008,1749666640292,-480.0,0.00019178,2]
[365430010,1749666640302,-480.0,0.00019178,2]
[365430012,1749666640311,-490.0,0.00019178,2]
[365430014,1749666640322,-470.0,0.00019178,2]
[365430016,1749666640332,-480.0,0.00019178,2]
[365430018,1749666640343,-152.50780307,0.00019178,2]
[365430020,1749666640351,-250.0,0.00019178,2]
[365430022,1749666640363,-543.95829506,0.00019178,2]
[365430024,1749666640373,-480.0,0.00019178,2]
[365430026,1749666640383,-490.0,0.00019178,2]
[365430028,1749666640395,-480.0,0.00019178,2]
[365430029,1749666640405,-490.0,0.00019178,2]
[365430032,1749666640416,-491.19,0.00019178,2]
[365430033,1749666640425,-490.0,0.00019178,2]
[365430035,1749666640434,-410.75791653,0.00019178,2]
[365430037,1749666640446,-490.0,0.00019178,2]
[365430039,1749666640456,-490.0,0.00019178,2]
[365430041,1749666640465,-490.0,0.00019178,2]
[365430043,1749666640475,-490.0,0.00019178,2]
[365430045,1749666640484,-490.0,0.00019178,2]
[365430047,1749666640493,-490.0,0.00019178,2]
[365430049,1749666640502,-490.0,0.00019178,2]
[365430051,1749666640512,-480.0,0.00019178,2]
[365430053,1749666640522,-490.0,0.00019178,2]
[365430055,1749666640532,-490.0,0.00019178,2]
[365430057,1749666640544,-238.51883787,0.00019178,2]
[365430059,1749666640554,-490.0,0.00019178,2]
[365430061,1749666640564,-480.0,0.00019178,2]
[365430063,1749666640573,-490.0,0.00019178,2]
[365430065,1749666640583,-490.0,0.00019178,2]
[365430067,1749666640592,-490.0,0.00019178,2]
[365430069,1749666640602,-480.0,0.00019178,2]
[365430071,1749666640611,-490.0,0.00019178,2]
[365430073,1749666640619,-480.0,0.00019178,2]
[365430075,1749666640628,-480.0,0.00019178,2]
[365430077,1749666640638,-480.0,0.00019178,2]
[365430079,1749666640647,-480.0,0.00019178,2]
[365430081,1749666640657,-480.0,0.00019178,2]
[365430083,1749666640666,-490.0,0.00019178,2]
[365430085,1749666640676,-480.0,0.00019178,2]
[365430087,1749666640686,-480.0,0.00019178,2]
[365430089,1749666640701,-172.30645119,0.00019178,2]
[365430091,1749666640711,-420.0,0.00019178,2]
[365430093,1749666640720,-490.0,0.00019178,2]
[365430095,1749666640730,-490.0,0.00019178,2]
[365430097,1749666640740,-490.0,0.00019178,2]
[365430099,1749666640750,-490.0,0.00019178,2]
[365430101,1749666640760,-490.0,0.00019178,2]
[365430104,1749666640770,-490.0,0.00019178,2]
[365430106,1749666640780,-490.0,0.00019178,2]
[365430107,1749666640789,-490.0,0.00019178,2]
[365430110,1749666640799,-490.0,0.00019178,2]
[365430112,1749666640809,-490.0,0.00019178,2]
[365430114,1749666640819,-480.0,0.00019178,2]
[365430116,1749666640828,-490.0,0.00019178,2]
[365430118,1749666640837,-490.0,0.00019178,2]
[365430120,1749666640847,-490.0,0.00019178,2]
[365430122,1749666640856,-490.0,0.00019178,2]
[365430123,1749666640865,-490.0,0.00019178,2]
[365430126,1749666640875,-490.0,0.00019178,2]
[365430127,1749666640884,-490.0,0.00019178,2]
[365430129,1749666640893,-490.0,0.00019178,2]
[365430132,1749666640903,-223.21531887,0.00019178,2]
[365430134,1749666640912,-596.16,0.00019178,2]
[365430136,1749666640922,-385.72922742,0.00019178,2]
[365430138,1749666640931,-490.0,0.00019178,2]
[365430140,1749666640943,-490.0,0.00019178,2]
[365430141,1749666640953,-490.0,0.00019178,2]
[365430144,1749666640963,-490.0,0.00019178,2]
[365430145,1749666640972,-490.0,0.00019178,2]
[365430148,1749666640981,-490.0,0.00019178,2]
[365430150,1749666640991,-490.0,0.00019178,2]
[365430152,1749666641000,-490.0,0.00019178,2]
[365430153,1749666641009,-490.0,0.00019178,2]
[365430155,1749666641019,-490.0,0.00019178,2]
[365430157,1749666641028,-490.0,0.00019178,2]
[365430160,1749666641037,-490.0,0.00019178,2]
[365430161,1749666641046,-172.82863063,0.00019178,2]
[365430163,1749666641056,-480.0,0.00019178,2]
[365430166,1749666641066,-490.0,0.00019178,2]
[365430167,1749666641075,-490.0,0.00019178,2]
[365430170,1749666641084,-480.0,0.00019178,2]
[365430172,1749666641094,-351.56595727,0.00019178,2]
[365430174,1749666641103,-480.0,0.00019178,2]
[365430175,1749666641112,-340.43287335,0.00019178,2]
[365430177,1749666641121,-223.96255562,0.00019178,2]
[365430179,1749666641130,-480.0,0.00019178,2]
[365430181,1749666641139,-460.0,0.00019178,2]
[365430183,1749666641148,-482.9878599,0.00019178,2]
[365430185,1749666641157,-490.0,0.00019178,2]
[365430187,1749666641166,-490.0,0.00019178,2]
[365430189,1749666641175,-695.34,0.00019178,2]
[365430191,1749666641184,-480.0,0.00019178,2]
[365430193,1749666641198,-490.0,0.00019178,2]
[365430195,1749666641207,-480.0,0.00019178,2]
[365430197,1749666641216,-490.0,0.00019178,2]
[365430199,1749666641226,-490.0,0.00019178,2]
[365430201,1749666641237,-490.0,0.00019178,2]
[365430203,1749666641246,-651.15,0.00019178,2]
[365430228,1749666641473,-490.0,0.00019178,2]
[365430230,1749666641483,-490.0,0.00019178,2]
[365430232,1749666641493,-611.40636827,0.00019178,2]
[365430234,1749666641502,-480.0,0.00019178,2]
[365430236,1749666641511,-490.0,0.00019178,2]
[365430238,1749666641521,-480.0,0.00019178,2]
[365430240,1749666641530,-490.0,0.00019178,2]
[365430242,1749666641539,-480.0,0.00019178,2]
[365430244,1749666641548,-490.0,0.00019178,2]
[365430246,1749666641557,-478.13717661,0.00019178,2]
[365430248,1749666641567,-490.0,0.00019178,2]
[365430250,1749666641575,-423.85649456,0.00019178,2]
[365430252,1749666641585,-480.0,0.00019178,2]
[365430253,1749666641594,-667.0,0.00019178,2]
[365430255,1749666641602,-189.52019711,0.00019178,2]
[365430257,1749666641612,-480.0,0.00019178,2]
[365430259,1749666641621,-460.0,0.00019178,2]
[365430261,1749666641630,-480.0,0.00019178,2]
[365430264,1749666641639,-490.0,0.00019178,2]
[365430265,1749666641649,-490.0,0.00019178,2]
[365430267,1749666641659,-490.0,0.00019178,2]
[365430270,1749666641668,-490.0,0.00019178,2]
[365430271,1749666641677,-490.0,0.00019178,2]
[365430273,1749666641686,-421.73338,0.00019178,2]
[365430275,1749666641698,-404.46654298,0.00019178,2]
[365430277,1749666641709,-490.0,0.00019178,2]
[365430279,1749666641719,-490.0,0.00019178,2]
[365430281,1749666641728,-490.0,0.00019178,2]
[365430283,1749666641737,-490.0,0.00019178,2]
[365430285,1749666641747,-490.0,0.00019178,2]
[365430287,1749666641756,-612.07977038,0.00019178,2]
[365430289,1749666641765,-490.0,0.00019178,2]
[365430291,1749666641774,-490.0,0.00019178,2]
[365430293,1749666641783,-490.0,0.00019178,2]
[365430295,1749666641792,-490.0,0.00019178,2]
[365430297,1749666641808,-490.0,0.00019178,2]
[365430299,1749666641819,-490.0,0.00019178,2]
[365430301,1749666641828,-445.26616653,0.00019178,2]
[365430303,1749666641837,-490.0,0.00019178,2]
[365430305,1749666641846,-490.0,0.00019178,2]
[365430307,1749666641856,-490.0,0.00019178,2]
[365430309,1749666641865,-490.0,0.00019178,2]
[365430311,1749666641875,-490.0,0.00019178,2]
[365430313,1749666641884,-490.0,0.00019178,2]
[365430315,1749666641894,-437.91823037,0.00019178,2]
[365430317,1749666641903,-490.0,0.00019178,2]
[365430319,1749666641912,-490.0,0.00019178,2]
[365430321,1749666641921,-490.0,0.00019178,2]
[365430323,1749666641931,-480.0,0.00019178,2]
[365430325,1749666641943,-490.0,0.00019178,2]
[365430327,1749666641953,-490.0,0.00019178,2]
[365430329,1749666641963,-490.0,0.00019178,2]
[365430331,1749666641972,-578.99,0.00019178,2]
[365430333,1749666641981,-490.0,0.00019178,2]
[365430335,1749666641991,-490.0,0.00019178,2]
[365430337,1749666642009,-490.0,0.00019178,2]
[365430339,1749666642027,-546.31,0.00019178,2]
[365430341,1749666642047,-490.0,0.00019178,2]
[365430343,1749666642056,-490.0,0.00019178,2]
[365430345,1749666642066,-490.0,0.00019178,2]
[365430346,1749666642076,-480.0,0.00019178,2]
[365430349,1749666642086,-490.0,0.00019178,2]
[365430350,1749666642095,-490.0,0.00019178,2]
[365430352,1749666642104,-480.0,0.00019178,2]
[365430354,1749666642114,-490.0,0.00019178,2]
[365430356,1749666642123,-480.0,0.00019178,2]
[365430358,1749666642132,-480.0,0.00019178,2]
[365430360,1749666642142,-480.0,0.00019178,2]
[365430362,1749666642151,-490.0,0.00019178,2]
[365430364,1749666642160,-490.0,0.00019178,2]
[365430366,1749666642170,-480.0,0.00019178,2]
[365430368,1749666642180,-516.47,0.00019178,2]
[365430370,1749666642193,-423.46160475,0.00019178,2]
[365430372,1749666642203,-490.0,0.00019178,2]
[365430374,1749666642212,-490.0,0.00019178,2]
[365430375,1749666642222,-490.0,0.00019178,2]
[365430377,1749666642231,-480.0,0.00019178,2]
[365430379,1749666642240,-480.0,0.00019178,2]
[365430381,1749666642251,-490.0,0.00019178,2]
[365430383,1749666642262,-212.61177819,0.00019178,2]
[365430385,1749666642272,-490.0,0.00019178,2]
[365430387,1749666642282,-490.0,0.00019178,2]
[365430389,1749666642292,-490.0,0.00019178,2]
[365430391,1749666642302,-480.0,0.00019178,2]
[365430393,1749666642311,-707.63,0.00019178,2]
[365430395,1749666642322,-490.0,0.00019178,2]
[365430397,1749666642333,-490.0,0.00019178,2]
[365430399,1749666642343,-490.0,0.00019178,2]
[365430401,1749666642352,-490.0,0.00019178,2]
[365430403,1749666642363,-639.53,0.00019178,2]
[365430404,1749666642373,-480.0,0.00019178,2]
[365430406,1749666642382,-480.0,0.00019178,2]
[365430408,1749666642391,-480.0,0.00019178,2]
[365430410,1749666642400,-490.0,0.00019178,2]
[365430412,1749666642411,-414.18847024,0.00019178,2]
[365430414,1749666642420,-570.16365202,0.00019178,2]
[365430416,1749666642428,-1527.267614,0.00019178,2]
[365430418,1749666642438,-490.0,0.00019178,2]
[365430420,1749666642450,-490.0,0.00019178,2]
[365430422,1749666642459,-158.026597,0.00019178,2]
[365430424,1749666642468,-490.0,0.00019178,2]
[365430425,1749666642477,-420.0,0.00019178,2]
[365430427,1749666642487,-502.31,0.00019178,2]
[365430429,1749666642497,-490.0,0.00019178,2]
[365430431,1749666642506,-480.0,0.00019178,2]
[365430433,1749666642515,-480.0,0.00019178,2]
[365430434,1749666642524,-480.0,0.00019178,2]
[365430435,1749666642533,-490.0,0.00019178,2]
[365430436,1749666642542,-490.0,0.00019178,2]
[365430437,1749666642551,-480.0,0.00019178,2]
[365430438,1749666642559,-516.57,0.00019178,2]
[365430439,1749666642568,-460.0,0.00019178,2]
[365430440,1749666642577,-490.0,0.00019178,2]
[365430441,1749666642586,-490.0,0.00019178,2]
[365430442,1749666642595,-380.0,0.00019178,2]
[365430443,1749666642604,-490.0,0.00019178,2]
[365430444,1749666642612,-490.0,0.00019178,2]
[365430445,1749666642621,-490.0,0.00019178,2]
[365430446,1749666642630,-538.45,0.00019178,2]
[365430447,1749666642639,-388.22581731,0.00019178,2]
[365430449,1749666642648,-1025.629265,0.00019178,2]
[365430451,1749666642657,-490.0,0.00019178,2]
[365430453,1749666642666,-420.0,0.00019178,2]
[365430455,1749666642675,-480.0,0.00019178,2]
[365430457,1749666642685,-355.69048981,0.00019178,2]
[365430458,1749666642696,-480.0,0.00019178,2]
[365430460,1749666642706,-490.0,0.00019178,2]
[365430463,1749666642716,-480.0,0.00019178,2]
[365430465,1749666642725,-283.58907707,0.00019178,2]
[365430478,1749666642834,-196.41092293,0.00019178,2]
[365430480,1749666642843,-490.0,0.00019178,2]
[365430482,1749666642852,-490.0,0.00019178,2]
[365430484,1749666642862,-480.0,0.00019178,2]
[365430486,1749666642871,-490.0,0.00019178,2]
[365430488,1749666642880,-480.0,0.00019178,2]
[365430490,1749666642890,-490.0,0.00019178,2]
[365430492,1749666642899,-490.0,0.00019178,2]
[365430494,1749666642908,-272.92090212,0.00019178,2]
[365430496,1749666642920,-217.07909788,0.00019178,2]
[365430498,1749666642929,-490.0,0.00019178,2]
[365430500,1749666642938,-490.0,0.00019178,2]
[365430502,1749666642948,-490.0,0.00019178,2]
[365430504,1749666642958,-490.0,0.00019178,2]
[365430506,1749666642967,-480.0,0.00019178,2]
[365430509,1749666642976,-574.58,0.00019178,2]
[365430511,1749666642986,-480.0,0.00019178,2]
[365430514,1749666642996,-347.22297098,0.00019178,2]
[365430516,1749666643005,-480.0,0.00019178,2]
[365430518,1749666643015,-480.0,0.00019178,2]
[365430520,1749666643025,-490.0,0.00019178,2]
[365430523,1749666643034,-22.640811,0.00019178,2]
[365430527,1749666643046,-467.359189,0.00019178,2]
[365430530,1749666643055,-490.0,0.00019178,2]
[365430532,1749666643064,-480.0,0.00019178,2]
[365430535,1749666643073,-809.64,0.00019178,2]
[365430538,1749666643082,-540.5317087,0.00019178,2]
[365430541,1749666643091,-490.0,0.00019178,2]
[365430544,1749666643100,-490.0,0.00019178,2]
[365430546,1749666643109,-424.13224569,0.00019178,2]
[365430548,1749666643118,-490.0,0.00019178,2]
[365430551,1749666643127,-490.0,0.00019178,2]
[365430553,1749666643136,-490.0,0.00019178,2]
[365430555,1749666643146,-490.0,0.00019178,2]
[365430557,1749666643155,-480.0,0.00019178,2]
[365430559,1749666643163,-480.0,0.00019178,2]
[365430561,1749666643172,-490.0,0.00019178,2]
[365430562,1749666643182,-480.0,0.00019178,2]
[365430564,1749666643192,-358.33685661,0.00019178,2]
[365430567,1749666643206,-131.66314339,0.00019178,2]
[365430569,1749666643215,-480.0,0.00019178,2]
[365430571,1749666643224,-490.0,0.00019178,2]
[365430573,1749666643233,-490.0,0.00019178,2]
[365430575,1749666643242,-490.0,0.00019178,2]
[365430577,1749666643251,-480.0,0.00019178,2]
[365430579,1749666643260,-480.0,0.00019178,2]
[365430581,1749666643269,-480.0,0.00019178,2]
[365430583,1749666643278,-490.0,0.00019178,2]
[365430585,1749666643287,-480.0,0.00019178,2]
[365430587,1749666643296,-152.40777911,0.00019178,2]
[365430589,1749666643305,-490.0,0.00019178,2]
[365430591,1749666643314,-304.02443954,0.00019178,2]
[365430595,1749666643338,-175.97556046,0.00019178,2]
[365430597,1749666643347,-560.49,0.00019178,2]
[365430599,1749666643355,-490.0,0.00019178,2]
[365430601,1749666643364,-480.0,0.00019178,2]
[365430603,1749666643374,-89.88588178,0.00019178,2]
[365430605,1749666643385,-390.11411822,0.00019178,2]
[365430607,1749666643394,-490.0,0.00019178,2]
[365430609,1749666643404,-490.0,0.00019178,2]
[365430611,1749666643414,-490.0,0.00019178,2]
[365430612,1749666643424,-490.0,0.00019178,2]
[365430613,1749666643433,-490.0,0.00019178,2]
[365430614,1749666643443,-490.0,0.00019178,2]
[365430615,1749666643452,-490.0,0.00019178,2]
[365430616,1749666643461,-490.0,0.00019178,2]
[365430617,1749666643470,-490.0,0.00019178,2]
[365430618,1749666643480,-421.77582201,0.00019178,2]
[365430620,1749666643488,-490.0,0.00019178,2]
[365430621,1749666643498,-480.0,0.00019178,2]
[365430622,1749666643506,-490.0,0.00019178,2]
[365430623,1749666643515,-422.44317901,0.00019178,2]
[365430624,1749666643524,-480.0,0.00019178,2]
[365430625,1749666643533,-460.0,0.00019178,2]
[365430626,1749666643542,-365.90291845,0.00019178,2]
[365430628,1749666643551,-480.0,0.00019178,2]
[365430629,1749666643560,-530.15,0.00019178,2]
[365430630,1749666643569,-480.0,0.00019178,2]
[365430631,1749666643579,-480.0,0.00019178,2]
[365430632,1749666643588,-490.0,0.00019178,2]
[365430633,1749666643597,-480.0,0.00019178,2]
[365430634,1749666643607,-480.0,0.00019178,2]
[365430635,1749666643616,-490.0,0.00019178,2]
[365430636,1749666643625,-480.0,0.00019178,2]
[365430637,1749666643634,-490.0,0.00019178,2]
[365430638,1749666643644,-480.0,0.00019178,2]
[365430639,1749666643652,-490.0,0.00019178,2]
[365430640,1749666643662,-480.0,0.00019178,2]
[365430641,1749666643671,-480.0,0.00019178,2]
[365430642,1749666643680,-480.0,0.00019178,2]
[365430643,1749666643689,-490.0,0.00019178,2]
[365430644,1749666643698,-480.0,0.00019178,2]
[365430645,1749666643708,-480.0,0.00019178,2]
[365430646,1749666643718,-490.0,0.00019178,2]
[365430647,1749666643728,-480.0,0.00019178,2]
[365430648,1749666643738,-490.0,0.00019178,2]
[365430649,1749666643747,-490.0,0.00019178,2]
[365430650,1749666643756,-480.0,0.00019178,2]
[365430652,1749666643765,-460.0,0.00019178,2]
[365430654,1749666643775,-480.0,0.00019178,2]
[365430656,1749666643784,-306.60185469,0.00019178,2]
[365430658,1749666643794,-490.0,0.00019178,2]
[365430660,1749666643803,-368.96293989,0.00019178,2]
[365430663,1749666643812,-480.0,0.00019178,2]
[365430666,1749666643821,-480.0,0.00019178,2]
[365430668,1749666643830,-480.0,0.00019178,2]
[365430670,1749666643839,-460.0,0.00019178,2]
[365430672,1749666643848,-480.0,0.00019178,2]
[365430674,1749666643857,-490.0,0.00019178,2]
[365430676,1749666643866,-490.0,0.00019178,2]
[365430678,1749666643875,-480.0,0.00019178,2]
[365430680,1749666643885,-490.0,0.00019178,2]
[365430682,1749666643894,-490.0,0.00019178,2]
[365430684,1749666643903,-490.0,0.00019178,2]
[365430686,1749666643912,-480.0,0.00019178,2]
[365430688,1749666643921,-480.0,0.00019178,2]
[365430690,1749666643930,-524.2,0.00019178,2]
[365430692,1749666643939,-480.0,0.00019178,2]
[365430694,1749666643951,-480.0,0.00019178,2]
[365430696,1749666643959,-490.0,0.00019178,2]
[365430698,1749666643968,-480.0,0.00019178,2]
[365430700,1749666643977,-301.67259675,0.00019178,2]
[365430702,1749666643986,-480.0,0.00019178,2]
[365430704,1749666643995,-490.0,0.00019178,2]
[365430706,1749666644004,-490.0,0.00019178,2]
[365430708,1749666644012,-480.0,0.00019178,2]
[365430710,1749666644021,-490.0,0.00019178,2]
[365430712,1749666644030,-610.89471364,0.00019178,2]
[365430714,1749666644039,-480.0,0.00019178,2]
[365430715,1749666644048,-480.0,0.00019178,2]
[365430718,1749666644057,-480.0,0.00019178,2]
[365430720,1749666644066,-480.0,0.00019178,2]
[365430721,1749666644076,-425.50736585,0.00019178,2]
[365430723,1749666644085,-531.08,0.00019178,2]
[365430726,1749666644094,-480.0,0.00019178,2]
[365430727,1749666644104,-480.0,0.00019178,2]
[365430729,1749666644113,-480.0,0.00019178,2]
[365430731,1749666644122,-480.0,0.00019178,2]
[365430733,1749666644131,-480.0,0.00019178,2]
[365430735,1749666644141,-490.0,0.00019178,2]
[365430737,1749666644150,-480.0,0.00019178,2]
[365430739,1749666644159,-480.0,0.00019178,2]
[365430741,1749666644168,-480.0,0.00019178,2]
[365430743,1749666644177,-480.0,0.00019178,2]
[365430745,1749666644186,-536.05,0.00019178,2]
[365430747,1749666644197,-480.0,0.00019178,2]
[365430749,1749666644206,-480.0,0.00019178,2]
[365430751,1749666644215,-711.92,0.00019178,2]
[365430753,1749666644224,-480.0,0.00019178,2]
[365430755,1749666644233,-348.56889125,0.00019178,2]
[365430757,1749666644243,-490.0,0.00019178,2]
[365430758,1749666644253,-443.35870455,0.00019178,2]
[365430760,1749666644262,-480.0,0.00019178,2]
[365430762,1749666644271,-480.0,0.00019178,2]
[365430764,1749666644280,-480.0,0.00019178,2]
[365430766,1749666644291,-480.0,0.00019178,2]
[365430768,1749666644300,-490.0,0.00019178,2]
[365430770,1749666644309,-480.0,0.00019178,2]
[365430772,1749666644319,-480.0,0.00019178,2]
[365430774,1749666644329,-480.0,0.00019178,2]
[365430777,1749666644341,-480.0,0.00019178,2]
[365430778,1749666644351,-443.10238964,0.00019178,2]
[365430780,1749666644360,-480.0,0.00019178,2]
[365430782,1749666644370,-480.0,0.00019178,2]
[365430784,1749666644379,-524.6,0.00019178,2]
[365430786,1749666644388,-423.09131802,0.00019178,2]
[365430789,1749666644398,-490.0,0.00019178,2]